fUST/lending_fUST_20250505
["ID","MTS","AMOUNT","RATE_DAILY","PERIOD"]
[359968322,1746454247289,-558.29,0.00035616,14]
[359968324,1746454247299,-151.0,0.00035616,14]
[359968326,1746454247309,-151.0,0.00035616,14]
[359968336,1746454247401,-151.0,0.00035616,14]
[359968339,1746454247412,-400.0,0.00035616,14]
[359968341,1746454247422,-232.721565,0.00035616,14]
[359968342,1746454247432,-378.19587091,0.00035616,2]
[359968344,1746454247441,-400.0,0.00035616,14]
[359968347,1746454247451,-400.0,0.00035616,14]
[359968349,1746454247460,-400.0,0.00035616,14]
[359968351,1746454247469,-400.0,0.00035616,14]
[359968352,1746454247478,-242.920872,0.00035616,14]
[359968355,1746454247488,-242.920872,0.00035616,14]
[359968357,1746454247498,-400.0,0.00035616,2]
[359968358,1746454247507,-1165.98,0.00035616,14]
[359968360,1746454247516,-1846.64,0.00035616,14]
[359968362,1746454247526,-242.920872,0.00035616,14]
[359968364,1746454247535,-242.920872,0.00035616,14]
[359968366,1746454247544,-400.0,0.00035616,14]
[359968368,1746454247553,-400.0,0.00035616,14]
[359968370,1746454247562,-400.0,0.00035616,14]
[359968372,1746454247572,-400.0,0.00035616,14]
[359968374,1746454247582,-196.611786,0.00035616,7]
[359968376,1746454247593,-400.0,0.00035616,2]
[359968378,1746454247602,-400.0,0.00035616,14]
[359968380,1746454247612,-400.0,0.00035616,14]
[359968382,1746454247621,-400.0,0.00035616,14]
[359968384,1746454247630,-400.0,0.00035616,14]
[359968386,1746454247640,-201.0391838,0.00035616,7]
[359968388,1746454247649,-3000.96,0.00035616,14]
[359968390,1746454247659,-400.0,0.00035616,14]
[359968392,1746454247669,-1501.0,0.00035616,7]
[359968394,1746454247679,-400.0,0.00035616,2]
[359968396,1746454247689,-160.0,0.0003562,7]
[359968398,1746454247699,-2500.0,0.00035643,10]
[359968400,1746454247708,-2500.0,0.00035643,10]
[359968402,1746454247718,-2061.23420002,0.00035643,10]
[359968404,1746454247730,-151.0,0.00035643,7]
[359968406,1746454247739,-500.0,0.00035643,7]
[359968408,1746454247749,-500.0,0.00035643,7]
[359968411,1746454247759,-151.0,0.00035643,7]
[359968412,1746454247768,-151.0,0.00035643,7]
[359968415,1746454247778,-151.0,0.00035643,7]
[359968417,1746454247788,-500.0,0.00035643,7]
[359968419,1746454247797,-500.0,0.00035643,7]
[359968420,1746454247807,-500.0,0.00035643,7]
[359968422,1746454247816,-500.0,0.00035643,7]
[359968425,1746454247825,-500.0,0.00035643,7]
[359968427,1746454247835,-151.0,0.00035643,7]
[359968429,1746454247845,-151.0,0.00035643,7]
[359968431,1746454247854,-500.0,0.00035643,7]
[359968433,1746454247863,-500.0,0.00035643,7]
[359968434,1746454247872,-151.0,0.00035643,7]
[359968436,1746454247881,-500.0,0.00035643,7]
[359968438,1746454247891,-241.39031166,0.00035643,7]
[359968441,1746454247900,-500.0,0.00035643,7]
[359968443,1746454247910,-500.0,0.00035643,7]
[359968445,1746454247919,-500.0,0.00035643,7]
[359968447,1746454247929,-151.0,0.00035643,7]
[359968449,1746454247938,-1501.0,0.00035643,7]
[359968451,1746454247948,-151.0,0.00035671,7]
[359968453,1746454247959,-500.0,0.00035671,7]
[359968455,1746454247968,-388.9150179,0.00035671,7]
[359968457,1746454247977,-256.76663444,0.00035671,7]
[359968459,1746454247987,-151.0,0.00035671,7]
[359968461,1746454247997,-151.0,0.00035671,7]
[359968463,1746454248006,-500.0,0.00035671,7]
[359968465,1746454248016,-500.0,0.00035671,7]
[359968467,1746454248026,-500.0,0.00035671,7]
[359968469,1746454248037,-254.51992579,0.00035671,7]
[359968471,1746454248046,-500.0,0.00035671,7]
[359968473,1746454248056,-151.0,0.00035671,7]
[359968475,1746454248065,-248.48814441,0.00035671,7]
[359968477,1746454248075,-500.0,0.00035671,7]
[359968479,1746454248084,-302.0,0.00035671,7]
[359968481,1746454248093,-199.07220192,0.00035671,7]
[359968483,1746454248102,-500.0,0.00035671,7]
[359968485,1746454248112,-500.0,0.00035671,7]
[359968487,1746454248122,-500.0,0.00035671,7]
[359968489,1746454248131,-500.0,0.00035671,7]
[359968491,1746454248141,-151.0,0.00035671,7]
[359968493,1746454248151,-1501.0,0.00035671,7]
[359968495,1746454248160,-500.0,0.00035673,5]
[359968497,1746454248170,-500.0,0.00035673,5]
[359968499,1746454248179,-500.0,0.00035673,5]
[359968501,1746454248189,-500.0,0.00035673,5]
[359968503,1746454248200,-500.0,0.00035673,5]
[359968505,1746454248210,-500.0,0.00035673,5]
[359968507,1746454248219,-517.22970476,0.00035673,5]
[359968509,1746454248228,-500.0,0.00035673,5]
[359968511,1746454248238,-500.0,0.00035673,5]
[359968513,1746454248249,-500.0,0.00035673,5]
[359968515,1746454248259,-502.61423436,0.00035673,5]
[359968517,1746454248269,-500.0,0.00035673,5]
[359968519,1746454248278,-502.55875453,0.00035673,5]
[359968521,1746454248287,-150.0,0.00035673,5]
[359968523,1746454248296,-500.0,0.00035673,5]
[359968525,1746454248306,-500.0,0.00035673,5]
[359968527,1746454248315,-512.96597108,0.00035673,5]
[359968529,1746454248324,-165.88066404,0.00035673,5]
[359968531,1746454248334,-557.80815498,0.00035673,5]
[359968533,1746454248344,-207.47265383,0.00035673,5]
[359968535,1746454248355,-500.0,0.00035673,5]
[359968537,1746454248364,-500.0,0.00035673,5]
[359968539,1746454248374,-500.0,0.00035673,5]
[359968541,1746454248384,-12607.13495863,0.00035677,2]
[359968543,1746454248394,-500.0,0.00035698,7]
[359968545,1746454248403,-500.0,0.00035698,7]
[359968547,1746454248412,-500.0,0.00035698,7]
[359968549,1746454248422,-500.0,0.00035698,7]
[359968551,1746454248431,-151.0,0.00035698,7]
[359968553,1746454248440,-500.0,0.00035698,7]
[359968556,1746454248452,-448.52264615,0.00035698,7]
[359968558,1746454248461,-349.0,0.00035698,7]
[359968560,1746454248471,-500.0,0.00035698,7]
[359968562,1746454248480,-151.0,0.00035698,7]
[359968564,1746454248489,-1501.0,0.00035698,7]
[359968566,1746454248499,-841.77443764,0.000357,10]
[359968568,1746454248508,-500.0,0.00035726,7]
[359968570,1746454248517,-500.0,0.00035726,7]
[359968572,1746454248527,-500.0,0.00035726,7]
[359968574,1746454248536,-276.79645986,0.00035726,7]
[359968575,1746454248545,-383.63810765,0.00035726,7]
[359968577,1746454248555,-1501.0,0.00035726,7]
[359968579,1746454248565,-500.0,0.00035753,7]
[359968582,1746454248575,-500.0,0.00035753,7]
[359968584,1746454248586,-500.0,0.00035753,7]
[359968586,1746454248600,-500.0,0.0003578,7]
[359968588,1746454248610,-500.0,0.0003578,7]
[359968590,1746454248619,-500.0,0.0003578,7]
[359968591,1746454248628,-272.0,0.000358,10]
[359968594,1746454248638,-160.0,0.000358,49]
[359968596,1746454248647,-160.0,0.000358,49]
[359968597,1746454248656,-1023.41637,0.000358,19]
[359968600,1746454248667,-635.0,0.000358,2]
[359968602,1746454248676,-6323.54,0.000358,30]
[359968604,1746454248685,-500.0,0.00035808,7]
[359968606,1746454248696,-500.0,0.00035808,7]
[359968608,1746454248704,-500.0,0.00035808,7]
[359968610,1746454248714,-151.0,0.00035808,14]
[359968612,1746454248723,-500.0,0.00035835,7]
[359968614,1746454248733,-500.0,0.00035835,7]
[359968616,1746454248742,-500.0,0.00035835,7]
[359968627,1746454248836,-421.36572426,0.00035863,7]
[359968629,1746454248846,-500.0,0.00035863,7]
[359968631,1746454248856,-500.0,0.00035863,7]
[359968633,1746454248865,-500.0,0.00035873,13]
[359968635,1746454248874,-501.19080263,0.00035889,10]
[359968637,1746454248884,-500.0,0.0003589,7]
[359968639,1746454248894,-500.0,0.0003589,7]
[359968641,1746454248904,-151.0,0.0003589,14]
[359968643,1746454248914,-151.0,0.0003589,14]
[359968645,1746454248923,-278.497364,0.0003589,14]
[359968647,1746454248933,-151.0,0.0003589,14]
[359968649,1746454248942,-509.77,0.0003589,14]
[359968651,1746454248955,-369.033424,0.0003589,14]
[359968653,1746454248964,-369.033424,0.0003589,14]
[359968655,1746454248973,-369.033424,0.0003589,14]
[359968657,1746454248983,-369.033424,0.0003589,14]
[359968659,1746454248993,-151.0,0.0003589,14]
[359968661,1746454249004,-158.255058,0.0003589,14]
[359968663,1746454249013,-151.448848,0.0003589,14]
[359968665,1746454249023,-1526.68,0.0003589,14]
[359968667,1746454249032,-400.0,0.0003589,14]
[359968669,1746454249041,-400.0,0.0003589,14]
[359968671,1746454249051,-400.0,0.0003589,14]
[359968673,1746454249060,-151.0,0.0003589,14]
[359968675,1746454249070,-404.66497173,0.0003589,14]
[359968677,1746454249080,-500.0,0.0003589,14]
[359968679,1746454249089,-203.38039065,0.0003589,14]
[359968681,1746454249098,-157.88394426,0.0003589,14]
[359968683,1746454249108,-186.79082279,0.0003589,14]
[359968684,1746454249117,-400.0,0.0003589,14]
[359968685,1746454249126,-530.838236,0.0003589,14]
[359968686,1746454249135,-530.838236,0.0003589,14]
[359968687,1746454249145,-400.0,0.0003589,14]
[359968688,1746454249154,-506.06089301,0.0003589,14]
[359968689,1746454249163,-530.838236,0.0003589,14]
[359968690,1746454249172,-530.838236,0.0003589,14]
[359968691,1746454249182,-400.0,0.0003589,14]
[359968692,1746454249191,-400.0,0.0003589,14]
[359968693,1746454249204,-400.0,0.0003589,14]
[359968694,1746454249213,-400.0,0.0003589,14]
[359968695,1746454249224,-400.0,0.0003589,14]
[359968696,1746454249233,-154.669196,0.0003589,14]
[359968698,1746454249243,-400.0,0.0003589,14]
[359968700,1746454249253,-400.0,0.0003589,14]
[359968702,1746454249263,-400.0,0.0003589,14]
[359968704,1746454249273,-304.23529294,0.0003589,14]
[359968706,1746454249283,-400.0,0.0003589,14]
[359968709,1746454249294,-1047.45,0.0003589,14]
[359968711,1746454249304,-400.0,0.0003589,14]
[359968713,1746454249314,-156.869992,0.0003589,14]
[359968714,1746454249323,-400.0,0.0003589,14]
[359968717,1746454249333,-400.0,0.0003589,14]
[359968719,1746454249343,-400.0,0.0003589,14]
[359968721,1746454249353,-400.0,0.0003589,14]
[359968723,1746454249364,-638.076689,0.0003589,14]
[359968725,1746454249374,-638.076689,0.0003589,14]
[359968727,1746454249384,-400.0,0.0003589,14]
[359968729,1746454249394,-400.0,0.0003589,14]
[359968731,1746454249403,-400.0,0.0003589,14]
[359968733,1746454249414,-161.245488,0.0003589,14]
[359968735,1746454249423,-161.245488,0.0003589,14]
[359968737,1746454249433,-515.58542781,0.0003589,14]
[359968739,1746454249443,-151.0,0.0003589,14]
[359968740,1746454249455,-161.245488,0.0003589,14]
[359968742,1746454249465,-161.245488,0.0003589,14]
[359968744,1746454249475,-400.0,0.0003589,14]
[359968747,1746454249485,-433.85,0.0003589,14]
[359968749,1746454249495,-400.0,0.0003589,14]
[359968751,1746454249505,-400.0,0.0003589,14]
[359968752,1746454249514,-151.0,0.0003589,14]
[359968755,1746454249524,-151.0,0.0003589,14]
[359968757,1746454249533,-400.0,0.0003589,14]
[359968759,1746454249543,-400.0,0.0003589,14]
[359968761,1746454249552,-151.0,0.0003589,2]
[359968763,1746454249561,-151.0,0.0003589,2]
[359968764,1746454249571,-188.600164,0.0003589,2]
[359968767,1746454249582,-414.94,0.0003589,14]
[359968769,1746454249595,-400.0,0.0003589,14]
[359968770,1746454249605,-400.0,0.0003589,14]
[359968773,1746454249615,-476.69,0.0003589,14]
[359968775,1746454249624,-400.0,0.0003589,14]
[359968776,1746454249634,-511.54472949,0.0003589,14]
[359968778,1746454249643,-1465.35,0.0003589,14]
[359968781,1746454249653,-400.0,0.0003589,14]
[359968782,1746454249662,-400.0,0.0003589,14]
[359968784,1746454249673,-211.43298111,0.0003589,14]
[359968787,1746454249683,-151.0,0.0003589,14]
[359968788,1746454249692,-400.0,0.0003589,14]
[359968790,1746454249703,-400.0,0.0003589,14]
[359968793,1746454249713,-151.0,0.0003589,14]
[359968794,1746454249723,-151.0,0.0003589,14]
[359968796,1746454249732,-151.287481,0.0003589,14]
[359968799,1746454249742,-641.38,0.0003589,14]
[359968800,1746454249751,-505.28799801,0.0003589,14]
[359968802,1746454249761,-151.0,0.0003589,14]
[359968804,1746454249770,-151.0,0.0003589,14]
[359968807,1746454249780,-179.62281,0.0003589,14]
[359968808,1746454249789,-179.62281,0.0003589,14]
[359968810,1746454249799,-153.790371,0.0003589,7]
[359968813,1746454249809,-401.81594102,0.0003589,14]
[359968814,1746454249818,-179.62281,0.0003589,14]
[359968817,1746454249828,-179.62281,0.0003589,14]
[359968819,1746454249838,-151.0,0.0003589,14]
[359968821,1746454249848,-151.0,0.0003589,14]
[359968823,1746454249858,-400.0,0.0003589,14]
[359968825,1746454249866,-152.080082,0.0003589,14]
[359968827,1746454249876,-151.0,0.0003589,14]
[359968829,1746454249885,-1000.0,0.0003589,14]
[359968831,1746454249895,-151.0,0.0003589,14]
[359968833,1746454249904,-400.0,0.0003589,14]
[359968834,1746454249914,-400.0,0.0003589,14]
[359968836,1746454249923,-400.0,0.0003589,14]
[359968838,1746454249933,-500.0,0.0003589,14]
[359968840,1746454249942,-400.0,0.0003589,14]
[359968842,1746454249953,-500.0,0.0003589,14]
[359968844,1746454249963,-151.0,0.0003589,14]
[359968846,1746454249972,-301.499318,0.0003589,14]
[359968848,1746454249981,-400.0,0.0003589,14]
[359968850,1746454249991,-151.0,0.0003589,14]
[359968852,1746454249999,-151.0,0.0003589,14]
[359968854,1746454250009,-400.0,0.0003589,14]
[359968856,1746454250018,-500.0,0.0003589,14]
[359968858,1746454250028,-400.0,0.0003589,14]
[359968860,1746454250037,-400.0,0.0003589,14]
[359968862,1746454250046,-400.0,0.0003589,14]
[359968864,1746454250055,-400.0,0.0003589,14]
[359968866,1746454250064,-469.96639291,0.0003589,14]
[359968868,1746454250073,-151.0,0.0003589,14]
[359968870,1746454250083,-405.35599822,0.0003589,14]
[359968877,1746454250169,-400.0,0.0003589,14]
[359968878,1746454250179,-400.0,0.0003589,14]
[359968880,1746454250189,-151.0,0.0003589,14]
[359968882,1746454250200,-400.0,0.0003589,14]
[359968883,1746454250209,-400.0,0.0003589,14]
[359968885,1746454250219,-210.63447585,0.0003589,14]
[359968887,1746454250228,-400.0,0.0003589,14]
[359968888,1746454250237,-400.0,0.0003589,14]
[359968890,1746454250246,-400.0,0.0003589,14]
[359968892,1746454250255,-400.0,0.0003589,14]
[359968893,1746454250264,-400.0,0.0003589,14]
[359968895,1746454250273,-400.0,0.0003589,14]
[359968897,1746454250282,-561.25,0.0003589,14]
[359968898,1746454250292,-400.0,0.0003589,14]
[359968900,1746454250302,-400.0,0.0003589,14]
[359968902,1746454250311,-400.0,0.0003589,14]
[359968903,1746454250321,-592.4,0.0003589,14]
[359968905,1746454250331,-358.0,0.0003589,14]
[359968907,1746454250340,-400.0,0.0003589,14]
[359968908,1746454250349,-400.0,0.0003589,14]
[359968910,1746454250358,-400.0,0.0003589,14]
[359968911,1746454250367,-400.0,0.0003589,14]
[359968913,1746454250377,-440.71,0.0003589,14]
[359968915,1746454250386,-400.0,0.0003589,14]
[359968916,1746454250395,-400.0,0.0003589,14]
[359968918,1746454250404,-400.0,0.0003589,14]
[359968920,1746454250414,-538.77,0.0003589,14]
[359968921,1746454250423,-401.37635423,0.0003589,14]
[359968923,1746454250433,-500.0,0.0003589,15]
[359968925,1746454250442,-400.0,0.0003589,14]
[359968926,1746454250453,-524.64,0.0003589,14]
[359968928,1746454250462,-512.28050981,0.0003589,14]
[359968930,1746454250472,-400.0,0.0003589,14]
[359968931,1746454250481,-400.0,0.0003589,14]
[359968933,1746454250490,-400.0,0.0003589,14]
[359968935,1746454250499,-377.07475999,0.0003589,14]
[359968936,1746454250508,-400.0,0.0003589,14]
[359968938,1746454250517,-400.0,0.0003589,14]
[359968940,1746454250527,-566.01,0.0003589,14]
[359968941,1746454250536,-151.0,0.0003589,14]
[359968943,1746454250545,-151.0,0.0003589,14]
[359968945,1746454250554,-400.0,0.0003589,14]
[359968947,1746454250563,-400.0,0.0003589,14]
[359968948,1746454250573,-151.0,0.0003589,14]
[359968950,1746454250582,-151.0,0.0003589,14]
[359968952,1746454250594,-400.0,0.0003589,14]
[359968954,1746454250603,-583.15,0.0003589,14]
[359968955,1746454250612,-400.0,0.0003589,14]
[359968957,1746454250622,-400.0,0.0003589,14]
[359968959,1746454250631,-400.0,0.0003589,14]
[359968960,1746454250641,-400.0,0.0003589,14]
[359968962,1746454250650,-400.0,0.0003589,14]
[359968964,1746454250659,-400.0,0.0003589,14]
[359968966,1746454250667,-400.0,0.0003589,14]
[359968967,1746454250676,-400.0,0.0003589,14]
[359968969,1746454250686,-400.0,0.0003589,14]
[359968971,1746454250695,-280.29936029,0.0003589,14]
[359968973,1746454250706,-1486.55,0.0003589,14]
[359968974,1746454250715,-402.48222823,0.0003589,14]
[359968976,1746454250725,-400.0,0.0003589,14]
[359968979,1746454250748,-400.0,0.0003589,2]
[359968982,1746454250764,-708.12,0.0003589,14]
[359968984,1746454250785,-400.0,0.0003589,14]
[359968987,1746454250803,-400.0,0.0003589,14]
[359968989,1746454250823,-400.0,0.0003589,14]
[359968992,1746454250842,-151.0,0.0003589,14]
[359968994,1746454250859,-400.0,0.0003589,14]
[359968996,1746454250873,-151.0,0.0003589,14]
[359968999,1746454250892,-611.76,0.0003589,14]
[359969002,1746454250912,-200.0,0.0003589,14]
[359969004,1746454250929,-400.0,0.0003589,14]
[359969006,1746454250943,-400.0,0.0003589,14]
[359969009,1746454250964,-1287.27,0.0003589,14]
[359969011,1746454250978,-400.0,0.0003589,14]
[359969013,1746454250993,-400.0,0.0003589,14]
[359969015,1746454251008,-200.0,0.0003589,14]
[359969018,1746454251023,-151.0,0.0003589,14]
[359969020,1746454251038,-155.129694,0.0003589,14]
[359969022,1746454251053,-199.64593122,0.0003589,14]
[359969024,1746454251067,-151.0,0.0003589,14]
[359969026,1746454251081,-151.0,0.0003589,14]
[359969029,1746454251096,-454.74,0.0003589,14]
[359969031,1746454251110,-205.89412048,0.0003589,14]
[359969033,1746454251125,-400.0,0.0003589,14]
[359969035,1746454251140,-400.0,0.0003589,14]
[359969037,1746454251154,-400.0,0.0003589,14]
[359969039,1746454251168,-896.03,0.0003589,14]
[359969041,1746454251183,-400.0,0.0003589,14]
[359969044,1746454251199,-400.0,0.0003589,14]
[359969046,1746454251213,-400.0,0.0003589,14]
[359969048,1746454251228,-201.93141834,0.0003589,14]
[359969050,1746454251244,-1511.108173,0.0003589,14]
[359969052,1746454251258,-1511.108173,0.0003589,14]
[359969054,1746454251274,-801.21,0.0003589,14]
[359969057,1746454251288,-400.0,0.0003589,14]
[359969059,1746454251303,-216.69010859,0.0003589,14]
[359969061,1746454251318,-400.0,0.0003589,14]
[359969064,1746454251333,-400.0,0.0003589,14]
[359969066,1746454251348,-400.0,0.0003589,14]
[359969069,1746454251362,-592.18,0.0003589,14]
[359969071,1746454251378,-400.0,0.0003589,14]
[359969074,1746454251393,-533.01,0.0003589,14]
[359969076,1746454251408,-1511.108173,0.0003589,14]
[359969079,1746454251423,-1511.108173,0.0003589,14]
[359969081,1746454251439,-151.0,0.0003589,14]
[359969082,1746454251455,-151.0,0.0003589,14]
[359969083,1746454251470,-400.69511377,0.0003589,14]
[359969084,1746454251486,-400.0,0.0003589,14]
[359969085,1746454251501,-400.0,0.0003589,14]
[359969086,1746454251517,-400.0,0.0003589,14]
[359969087,1746454251533,-483.93,0.0003589,14]
[359969088,1746454251549,-400.0,0.0003589,14]
[359969089,1746454251564,-400.0,0.0003589,14]
[359969090,1746454251579,-400.0,0.0003589,14]
[359969091,1746454251598,-400.0,0.0003589,14]
[359969092,1746454251613,-400.0,0.0003589,14]
[359969093,1746454251629,-400.0,0.0003589,14]
[359969094,1746454251642,-400.0,0.0003589,14]
[359969096,1746454251652,-850.67,0.0003589,14]
[359969111,1746454251773,-400.0,0.0003589,14]
[359969114,1746454251826,-500.0,0.0003589,14]
[359969116,1746454251836,-400.0,0.0003589,14]
[359969118,1746454251846,-400.0,0.0003589,14]
[359969120,1746454251855,-400.0,0.0003589,14]
[359969122,1746454251865,-767.28,0.0003589,14]
[359969124,1746454251875,-407.43329002,0.0003589,14]
[359969126,1746454251884,-400.0,0.0003589,14]
[359969128,1746454251893,-555.89,0.0003589,14]
[359969130,1746454251903,-400.0,0.0003589,14]
[359969132,1746454251913,-400.0,0.0003589,14]
[359969134,1746454251923,-400.0,0.0003589,14]
[359969136,1746454251932,-400.0,0.0003589,14]
[359969138,1746454251941,-2777.31,0.0003589,14]
[359969140,1746454251953,-400.0,0.0003589,14]
[359969142,1746454251963,-400.0,0.0003589,14]
[359969144,1746454251972,-400.0,0.0003589,14]
[359969146,1746454251982,-682.07,0.0003589,14]
[359969148,1746454251992,-156.87371,0.0003589,14]
[359969150,1746454252001,-400.0,0.0003589,14]
[359969152,1746454252011,-785.76,0.0003589,14]
[359969154,1746454252020,-2039.67,0.0003589,14]
[359969156,1746454252029,-400.0,0.0003589,14]
[359969158,1746454252039,-400.0,0.0003589,14]
[359969160,1746454252047,-650.95,0.0003589,14]
[359969162,1746454252056,-406.69,0.0003589,14]
[359969163,1746454252065,-400.0,0.0003589,14]
[359969165,1746454252074,-400.0,0.0003589,14]
[359969167,1746454252083,-400.0,0.0003589,14]
[359969169,1746454252092,-400.0,0.0003589,14]
[359969170,1746454252101,-400.0,0.0003589,14]
[359969172,1746454252111,-744.36,0.0003589,14]
[359969174,1746454252120,-400.0,0.0003589,14]
[359969176,1746454252129,-400.0,0.0003589,14]
[359969178,1746454252139,-400.0,0.0003589,14]
[359969180,1746454252149,-400.0,0.0003589,14]
[359969182,1746454252159,-400.0,0.0003589,14]
[359969184,1746454252169,-400.0,0.0003589,14]
[359969186,1746454252179,-400.0,0.0003589,14]
[359969188,1746454252188,-400.0,0.0003589,14]
[359969190,1746454252197,-400.0,0.0003589,14]
[359969192,1746454252208,-151.265392,0.0003589,14]
[359969194,1746454252217,-400.0,0.0003589,14]
[359969196,1746454252227,-400.0,0.0003589,14]
[359969197,1746454252236,-3180.48,0.0003589,14]
[359969199,1746454252246,-400.0,0.0003589,14]
[359969201,1746454252255,-400.0,0.0003589,14]
[359969203,1746454252265,-400.0,0.0003589,14]
[359969205,1746454252275,-400.0,0.0003589,14]
[359969207,1746454252284,-417.8248337,0.0003589,14]
[359969209,1746454252293,-400.0,0.0003589,14]
[359969212,1746454252303,-403.20428432,0.0003589,14]
[359969213,1746454252312,-620.84,0.0003589,14]
[359969215,1746454252322,-500.0,0.0003589,14]
[359969217,1746454252332,-400.0,0.0003589,14]
[359969219,1746454252342,-400.0,0.0003589,14]
[359969221,1746454252351,-400.0,0.0003589,14]
[359969223,1746454252361,-400.0,0.0003589,14]
[359969225,1746454252371,-402.74987584,0.0003589,14]
[359969227,1746454252380,-400.0,0.0003589,14]
[359969229,1746454252389,-400.0,0.0003589,14]
[359969231,1746454252398,-400.0,0.0003589,14]
[359969233,1746454252407,-400.0,0.0003589,14]
[359969235,1746454252417,-403.12327759,0.0003589,14]
[359969237,1746454252426,-406.68035428,0.0003589,14]
[359969239,1746454252435,-400.0,0.0003589,14]
[359969241,1746454252444,-400.0,0.0003589,14]
[359969243,1746454252455,-400.0,0.0003589,14]
[359969245,1746454252465,-400.0,0.0003589,14]
[359969247,1746454252474,-400.0,0.0003589,14]
[359969249,1746454252484,-400.0,0.0003589,14]
[359969251,1746454252493,-400.0,0.0003589,14]
[359969253,1746454252502,-400.0,0.0003589,14]
[359969255,1746454252511,-400.0,0.0003589,14]
[359969257,1746454252520,-400.0,0.0003589,14]
[359969259,1746454252529,-400.0,0.0003589,14]
[359969261,1746454252538,-300.82616487,0.0003589,14]
[359969263,1746454252548,-182.149004,0.0003589,14]
[359969265,1746454252556,-182.149004,0.0003589,14]
[359969267,1746454252566,-740.25,0.0003589,14]
[359969269,1746454252575,-400.0,0.0003589,14]
[359969271,1746454252584,-400.0,0.0003589,14]
[359969273,1746454252598,-982.41,0.0003589,14]
[359969275,1746454252607,-400.0,0.0003589,14]
[359969277,1746454252616,-402.66919914,0.0003589,14]
[359969279,1746454252626,-182.149004,0.0003589,14]
[359969281,1746454252635,-400.0,0.0003589,14]
[359969283,1746454252645,-182.149004,0.0003589,14]
[359969285,1746454252654,-400.0,0.0003589,14]
[359969287,1746454252664,-400.0,0.0003589,14]
[359969289,1746454252674,-400.0,0.0003589,14]
[359969291,1746454252684,-400.0,0.0003589,14]
[359969293,1746454252693,-400.0,0.0003589,14]
[359969295,1746454252703,-464.74,0.0003589,14]
[359969297,1746454252712,-402.32,0.0003589,14]
[359969299,1746454252722,-407.73027785,0.0003589,14]
[359969301,1746454252731,-400.0,0.0003589,14]
[359969303,1746454252741,-400.0,0.0003589,14]
[359969305,1746454252750,-400.0,0.0003589,14]
[359969307,1746454252759,-484.71,0.0003589,14]
[359969309,1746454252768,-151.0,0.0003589,14]
[359969311,1746454252778,-151.0,0.0003589,14]
[359969313,1746454252787,-400.0,0.0003589,14]
[359969315,1746454252796,-400.0,0.0003589,14]
[359969317,1746454252806,-531.28,0.0003589,14]
[359969319,1746454252815,-151.0,0.0003589,14]
[359969321,1746454252823,-151.0,0.0003589,14]
[359969323,1746454252833,-1020.78,0.0003589,14]
[359969325,1746454252843,-1383.61,0.0003589,14]